Cogmind - Beta 13 @@@ ROGUE MODE // 2024.07.07 @ 08:47:33 Player: gigi283 Result: Destroyed by as-59443 with Assembled Heavy Rifle Performance ------------- Evolutions (0) 0 Regions Visited (2) 400 Robots Destroyed (26) 130 Value Destroyed (637) 637 Prototype IDs (1) 20 Alien Tech Used (0) 0 Bonus (-41) -41 TOTAL SCORE: 1146 Bonus ------- Friendly Fire -41 Cogmind --------- Core Integrity 0/250 Matter 245/300 Energy 95/100 System Corruption 0% Temperature Cool (73) Movement Walking (190) Ox1 Location -10/Mines Parts ------- > --- POWER (1) -------- (None) > --- PROPULSION (2) --- Aluminum Leg Aluminum Leg > --- UTILITY (2) ------ Large Storage Unit Signal Interpreter > --- WEAPON (2) ------- Particle Gun > --- INVENTORY (15) --- Ion Engine Aluminum Leg Aluminum Leg Improved Heat Sink Cooling System Medium Matter Pod (100) Experimental Sensor Array Transport Network Coupler Peak State ------------ > --- POWER ------------ Ion Engine > --- PROPULSION ------- Aluminum Leg Aluminum Leg > --- UTILITY ---------- Large Storage Unit Signal Interpreter > --- WEAPON ----------- Light EM Pulse Cannon Advanced Beam Cannon > --- INVENTORY -------- Ion Engine Aluminum Leg Aluminum Leg Aluminum Leg Improved Heat Sink Cooling System Medium Matter Pod Transport Network Coupler Grenade Launcher [Rating: 11] Favorites ----------- Power Ion Engine Engine Ion Engine Propulsion Aluminum Leg Leg Aluminum Leg Utility Large Storage Unit Storage Large Storage Unit Processor Signal Interpreter Weapon Advanced Beam Cannon Energy Gun Particle Gun Energy Cannon Advanced Beam Cannon Ballistic Gun Light Assault Rifle Launcher Grenade Launcher Build | -11 -10 -10 ------- Run | Yrd Mat Min Slots Evolved . | . . . Power . | . . . Propulsion . | . . . Utility . | . . . Weapon . | . . . Parts Attached 19 | 6 8 5 Power 3 | 1 1 1 Engine 3 | 1 1 1 Core . | . . . Reactor . | . . . Propulsion 6 | 2 2 2 Treads . | . . . Leg 6 | 2 2 2 Wheel . | . . . Hover . | . . . Flight . | . . . Utility 3 | 1 2 . Device . | . . . Storage 2 | 1 1 . Processor 1 | . 1 . Hackware . | . . . Protection . | . . . Artifact . | . . . Weapon 7 | 2 3 2 Energy Gun 1 | . . 1 Energy Cannon 3 | . 3 . Ballistic Gun 2 | 2 . . Ballistic Cannon . | . . . Launcher 1 | . . 1 Special Weapon . | . . . Impact Weapon . | . . . Slashing Weapon . | . . . Piercing Weapon . | . . . Special Melee Weapon . | . . . Unidentified Prototypes 1 | . 1 . Parts Lost 6 | . . 6 Power 1 | . . 1 Propulsion 2 | . . 2 Utility . | . . . Weapon 3 | . . 3 Highest Loss Streak 5 | . . 5 To Critical Strikes 1 | . . 1 Average Slot Usage (%) 96 | . 96 97 Engine 14 | . 14 14 Leg 27 | . 28 26 Storage 14 | . 14 14 Processor 11 | . 10 14 Energy Cannon 15 | . 15 14 Ballistic Gun 9 | . 12 . Launcher 2 | . . 12 Naked Turns . | . . . Heaviest Build 33 | 13 33 33 Greatest Support 20 | 20 20 20 Greatest Overweight (x) 8 | . 1 8 Average Overweight (x) . | . . 1 Largest Inventory Capacity 15 | 8 15 15 Average Capacity 14 | 6 14 15 Most Carried 11 | 1 10 11 Average Carried 7 | . 6 9 Final Capacity 15 | 8 15 15 Final Carried 9 | 1 9 8 Class Distribution -------------------- 100% | Mutant Dominant Class ---------------- Mutant | -10/Materials Mutant | -10/Mines Resources | -11 -10 -10 ----------- Run | Yrd Mat Min Matter Collected 670 | 202 428 40 Remotely . | . . . Salvage Created 900 | . 645 255 Parts 53 | . 44 9 Haulers Intercepted 2 | . 2 . Recyclers Shooed 2 | . . 2 Parts Field Recycled . | . . . Retrieved Matter . | . . . Parts Self-Destructed . | . . . Prevented . | . . . Kills | -11 -10 -10 ------- Run | Yrd Mat Min Combat Hostiles Destroyed 28 | . 13 15 Guns 5 | . 5 . Cannons 11 | . 6 5 AOE 11 | . 2 9 Classes Destroyed 7 | . 6 1 Builder 1 | . 1 . Hauler 2 | . 2 . Recycler 1 | . 1 . Watcher 3 | . 3 . Swarmer 6 | . 6 . Grunt 13 | . 7 6 Assembled 9 | . . 9 Best Kill Streak 9 | . 6 9 Combat Bots Only 9 | . 4 9 Max Kills in Single Turn 3 | . 2 3 Gunslinging . | . . . Exploded 3 | . 2 3 Melee . | . . . Uniques/NPCs Destroyed . | . . . Combat | -11 -10 -10 -------- Run | Yrd Mat Min Hostile Shots Fired 122 | . 56 66 Missed 30 | . 14 16 Damage Taken 1150 | . 427 723 Core 262 | . 81 181 Absorbed by Shields . | . . . Core Remaining (%) 100 | 100 . . Volleys Fired 100 | . 69 31 Largest 2 | . 2 2 Hottest 124 | . 124 124 Shots Fired 180 | . 138 42 Gun 101 | . 96 5 Cannon 72 | . 42 30 Launcher 7 | . . 7 Special . | . . . Kinetic 96 | . 96 . Thermal 52 | . 21 31 Explosive 7 | . . 7 Electromagnetic 25 | . 21 4 Robot Hit Streak 8 | . 8 7 Robot Miss Streak 6 | . 6 5 Penetration Max . | . . . Secondary Targets 1 | . 1 . Max Gunslinging Chain 1 | . 1 . Shots Hit Robots 82 | . 62 20 Core Hits 53 | . 26 27 Critical Kills 1 | . . 1 Critical Parts Destroyed . | . . . Critical Strikes 3 | . 2 1 Meltdown 1 | . . 1 Corrupt 2 | . 2 . Melee Attacks . | . . . Impact . | . . . Slashing . | . . . Piercing . | . . . Sneak Attacks . | . . . Combat Hostiles . | . . . Follow-up Attacks . | . . . Damage Inflicted 2282 | . 1058 1224 Guns 525 | . 484 41 Cannons 860 | . 441 419 Explosions 893 | . 132 761 Melee . | . . . Ramming 4 | . 1 3 Kinetic 484 | . 484 . Thermal 930 | . 319 611 Explosive 518 | . . 518 Electromagnetic 346 | . 254 92 Impact . | . . . Slashing . | . . . Piercing . | . . . Highest Corruption . | . . . Average Corruption . | . . . Corruption Purged . | . . . Corruption Blocked . | . . . Overload Shots . | . . . Overflow Damage 11 | . . 11 Projectiles . | . . . Explosions 11 | . . 11 Melee . | . . . Knockbacks . | . . . Impact . | . . . Kinetic . | . . . Secondary . | . . . Self-Inflicted Damage . | . . . Shots . | . . . Rammed . | . . . Targets Rammed 2 | . 1 1 Kicked 2 | . 1 1 Crushed . | . . . Highest Temperature 408 | . 408 312 Average Temperature 134 | . 136 132 Received Heat Transfer 249 | . 150 99 Effects 5 | . 4 1 Shutdowns 2 | . 2 . Energy Bleed 3 | . 2 1 Siege Activations . | . . . Robots Corrupted . | . . . Combat Hostiles . | . . . Parts Fried . | . . . Impact Corruptions . | . . . Robots Melted 1 | . . 1 Combat Hostiles 1 | . . 1 Parts Melted . | . . . Heat Transferred 1436 | . 483 953 Parts Sabotaged . | . . . Parts Stolen . | . . . Parts Stripped . | . . . Power Chain Reactions 3 | . 2 1 Alert | -11 -10 -10 ------- Run | Yrd Mat Min Peak Influence 245 | . 184 245 Initial 27 | . . 27 Average 110 | . 92 188 Maximum Alert Level 1 | . . 1 Low Security (%) 88 | 100 100 46 Level 1 11 | . . 53 Level 2 . | . . . Level 3 . | . . . Level 4 . | . . . Level 5 . | . . . High Security . | . . . Max Security . | . . . Squads Dispatched 3 | . 3 . Investigation 2 | . 2 . Extermination . | . . . Reinforcement 1 | . 1 . Assault . | . . . Garrison . | . . . Intercept . | . . . Searches Triggered . | . . . Construction Impeded . | . . . Haulers Reinforced . | . . . Active Scanning Responses . | . . . Cargo Convoy Interrupts . | . . . Stealth | -11 -10 -10 --------- Run | Yrd Mat Min Distress Signals 2 | . 2 . Communications Jammed . | . . . Distress Signals . | . . . Times Spotted 40 | . 20 20 Peak Tracking Total 14 | . 4 14 Tactical Retreats 2 | . 2 . Traps | -11 -10 -10 ------- Run | Yrd Mat Min Traps Triggered 2 | . 2 . Indirectly . | . . . Trap Hack Attempts . | . . . Triggered . | . . . Disarmed . | . . . Reprogrammed . | . . . Reused . | . . . Traps Extracted . | . . . Installed . | . . . Triggered . | . . . Machines | -11 -10 -10 ---------- Run | Yrd Mat Min Machines Disabled 2 | . . 2 Max in Single Turn 2 | . . 2 Machines Repaired . | . . . Machines Dismantled . | . . . Machines Sabotaged . | . . . Overloaded Fab Kills . | . . . Hacking | -11 -10 -10 --------- Run | Yrd Mat Min Machines Accessed 4 | . 4 . Terminals 4 | . 4 . Fabricators . | . . . Repair Stations . | . . . Recycling Units . | . . . Scanalyzers . | . . . Garrison Access . | . . . Total Hacks 9 | . 9 . Successful 6 | . 6 . Failed 3 | . 3 . Catastrophic . | . . . Database Lockouts . | . . . Manual 5 | . 5 . Terminals 9 | . 9 . Fabricators . | . . . Repair Stations . | . . . Recycling Units . | . . . Scanalyzers . | . . . Garrison Access . | . . . Terminal Hacks 3 | . 3 . Record 2 | . 2 . Hauler Manifests 1 | . 1 . Fabricator Hacks . | . . . Repair Station Hacks . | . . . Recycling Unit Hacks . | . . . Scanalyzer . | . . . Garrison Access Hacks . | . . . Unauthorized Hacks 3 | . 3 . Terminals 3 | . 3 . Botnet 3 | . 3 . Fabricators . | . . . Repair Stations . | . . . Recycling Units . | . . . Scanalyzers . | . . . Garrison Access . | . . . Data Cores Recovered . | . . . Used . | . . . Hacking Detections 3 | . 3 . Full Trace Events . | . . . Feedback Events . | . . . Feedback Blocked . | . . . Robot Schematics Acquired . | . . . Robots Built . | . . . Authchips . | . . . Time . | . . . Total Robot Build Rating . | . . . Part Schematics Acquired . | . . . Parts Built . | . . . Authchips . | . . . Time . | . . . Total Part Build Rating . | . . . Parts Repaired . | . . . Time . | . . . Parts Recycled . | . . . Recycled Matter . | . . . Retrieved Matter . | . . . Retrieved Components . | . . . Parts Scanalyzed . | . . . Part Schematics Acquired . | . . . Parts Damaged . | . . . Bothacking | -11 -10 -10 ------------ Run | Yrd Mat Min Used RIF Installer . | . . . Robots Hacked . | . . . Non-combat . | . . . Combat . | . . . Robot Hacks Applied . | . . . Relay Couplers Released . | . . . Fabnet Peak Effective % . | . . . Robots Rewired . | . . . Allies Hacked . | . . . Hacks Repelled . | . . . Allies | -11 -10 -10 -------- Run | Yrd Mat Min Total Allies 2 | . . 2 Largest Group 2 | . . 2 Highest-Rated Group 46 | . . 46 Highest-Rated Ally 31 | . . 31 Total Orders . | . . . Ally Attacks 4 | . . 4 Total Damage 65 | . . 65 Kills 1 | . . 1 Allies Corrupted . | . . . Allies Melted . | . . . Intel | -11 -10 -10 ------- Run | Yrd Mat Min Robot Analysis Total . | . . . Derelict Logs Recovered 1 | . . 1 Drone Launches . | . . . Drone Recoveries . | . . . Exploration | -11 -10 -10 ------------- Run | Yrd Mat Min Turns Passed 1667 | 46 1263 358 Spaces Moved 724 | 32 549 143 Core 4 | 3 . 1 Treads . | . . . Legs 720 | 29 549 142 Wheels . | . . . Hover . | . . . Flight . | . . . Fastest Speed 50 | 50 120 190 Average Speed 186 | 113 189 192 Slowest Speed 450 | 120 190 450 Overloaded Moves . | . . . Propulsion Burnouts . | . . . Robots Hopped . | . . . Cave-ins Triggered . | . . . Exploration Rate (%) 41 | 3 72 50 Regions Visited 2 Branch Regions 1 Pre-discovered Areas 1 | . . 1 Known Exits Taken 1 | . 1 . Unknown Exits Taken 1 | 1 . . Scrap Searched . | . . . Spaces Dug . | . . . Terrain Destroyed 48 | . 8 40 Melee . | . . . Projectile . | . . . AOE 48 | . 8 40 Terrain Rammed . | . . . Walls Destroyed . | . . . Machines Disabled . | . . . Actions | -11 -10 -10 --------- Run | Yrd Mat Min Total 866 | 39 644 183 Wait . | . . . Move 722 | 31 548 143 Hop . | . . . Pick Up 16 | 2 11 3 Fast Attach 8 | 5 3 . Attach 7 | 1 2 4 Detach . | . . . Swap 4 | . 3 1 Drop 7 | . 7 . Fire 100 | . 69 31 Melee . | . . . Ram . | . . . Kick 2 | . 1 1 Crush . | . . . Escape Stasis . | . . . Rewire . | . . . Trap . | . . . Miscellaneous . | . . . Route ------- -11/Scrapyard -10/Materials (discovered 2 exits: *Mat / *Min) -10/Mines (discovered 1 exit: *Mat) History --------- Turn | Location | Event 5 | -11/Scrapyard | Discovered new exit (range 16) 47 | -11/Scrapyard | Entered Materials 163 | -10/Materials | Discovered new exit (range 15) 304 | -10/Materials | Build established: Mutant 752 | -10/Materials | Discovered new exit (range 3) 762 | -10/Materials | Identified exit to Materials 1160 | -10/Materials | Identified exit to Mines 1310 | -10/Materials | Entered Mines 1310 | -10/Mines | Discovered exit to Materials (range 9) 1434 | -10/Mines | Core integrity fell below 50% 1516 | -10/Mines | Found a damaged Exp. Sensor Array with a note attached 1520 | -10/Mines | Found Prototype Device 1534 | -10/Mines | Learned location of Storage (-7) 1613 | -10/Mines | Assembled infested the area 1658 | -10/Mines | Destroyed 9 combat bots 1660 | -10/Mines | Core integrity fell below 20% 1668 | -10/Mines | Destroyed by as-59443 with Assembled Heavy Rifle Last Messages --------------- 01622_ as-25417 destroyed. 01622_ as-29417 destroyed. 01622_ Destroyed Asb. F-torch. 01622_ as-01599 destroyed. 01625_ as-08337 destroyed. 01625_ as-32046 destroyed. 01626_ KK-OMO(z) destroyed. 01626_ as-55921 destroyed. 01632_ O4-Z84(g) destroyed. 01632_ as-14223 suffers critical hit (Meltdown). 01633_ Aluminum Leg destroyed. 01634_ Destroyed Asb. Blade. 01637_ Grenade Launcher destroyed. 01637_ as-15251 destroyed. 01639_ The unstable cave ceiling collapses. 01641_ Overheating: Energy bleed (-37). 01644_ Adv. Beam Cannon destroyed. 01646_ Aluminum Leg destroyed. 01661_ Critical hit (Destroy). 01661_ Lgt. Ion Engine destroyed. Map ----- +----------------------------------------------------+ | ????????????????????#### | | ????????????????# # | | ???????????????????## ## #### ## | | ????????????????????# ## #??# ##? | | ??????????????????### ## #??## ###?? | | ?????????????????## #???## #???? | | ?????????????????# #????# #???? | | ????????????###### ###### #???? | | ????????????# #???? | | ????????????# #???? | | ????????????# ###### ########???? | | ????????????# #????## #?????????? | | ??# ???????# #?????# #????????? | | ??# ?????# #?????# #???????? | | ??# ????# #?????# #??????? | | ??# ????# #?????## #??????? | | ??# ???# #??????## #??????? | | ??# ???# ####????# ?????? | | ??# ??# ##???# ????? | | ??# ### #### # ###???? | | ??# ## #?????? | | ??# #??#?????? | | ?# ## ##????????? | | ?# # #?? ##?????????? | | ?## ## a#### #?? ##??????????? | | ??### #?# @#??? #???#????????????? | | ????# ##??# #??? ###### ?????????? | | ????# ????##aa#### ????????? | | ????# #### ????????? | | ????# #???????????? | | ????# =%% ????????? | | ????######## [= % ????????? | | ???????????## ?????????? | | ????????????## # ?????????? | | ?????????????? # ##??????????? | | ?????????????? ##?##???????????? | | ?????????????? #####???????????????? | | ??????????????####???????????????????? | | ?????????????????????????????????????? | | ?????????????????????????????????????? | | ?????????????????????????????????????? | | ?????????????????????????????????????? | | ?????????????????????????????????????? | | ?????????????????????????????????????? | | ?????????????????????????????????????? | | ?????????????????????????????????????? | | ?????????????????????????????????????? | | | | | | | +----------------------------------------------------+ Best States ------------- Heat Dissipation 25 Energy Generation 10 Energy Capacity 250 Matter Stores 300 Matter Capacity 300 Sight Range 16 Terrain Scan Density 10 Evasion (%) 50 Item Schematics ----------------- None Robot Schematics ------------------ None Fabricated ------------ Nothing Alien Tech Used ----------------- None Achievements -------------- None Challenges ------------ None Game ------ Seed HellfireNovaBattery Manual? 0 Play Time 00:15:44 Cumulative 18.5 hours Start 2024.07.07 @ 08:28:06 End 2024.07.07 @ 08:47:33 Sessions 1 Manual Loads 0 Difficulty Rogue Special Mode None Game No. 25 Rogue 25 Adventurer 0 Explorer 0 Win Type - Total 0 Types 0/0/0/0/0/0/0/0/0 Lore% 14 Gallery% 21 Achievement% 18 Wizard Run 0 Options --------- Layout 1 ASCII 0 Keyboard 0 Movement Arrows Keybinds 0 Fullscreen 2 Font 24/Smallcaps Map View 50x35 Zoom Use 0% Tactical HUD 1 Map Filters NONE Filters NONE Steam 1 RUN: 1deb3e36-7e64-45ae-8e2f-0303ef23b601